fUST/lending_fUST_20251001
["ID","MTS","AMOUNT","RATE_DAILY","PERIOD"]
[388668155,1759312257115,-2807.49,0.00020273,2]
[388668156,1759312257125,-500.0,0.00020273,2]
[388668157,1759312257134,-500.0,0.00020273,2]
[388668158,1759312257143,-500.0,0.00020273,2]
[388668159,1759312257152,-1806.42,0.00020273,2]
[388668160,1759312257162,-1024.64,0.00020273,2]
[388668161,1759312257171,-500.0,0.00020273,2]
[388668162,1759312257181,-518.19,0.00020273,2]
[388668163,1759312257190,-500.0,0.00020273,2]
[388668164,1759312257199,-500.0,0.00020273,2]
[388668165,1759312257209,-1487.26,0.00020273,2]
[388668166,1759312257219,-1559.42,0.00020273,2]
[388668167,1759312257228,-500.0,0.00020273,2]
[388668168,1759312257238,-500.0,0.00020273,2]
[388668169,1759312257247,-1096.91,0.00020273,2]
[388668170,1759312257256,-500.0,0.00020273,2]
[388668171,1759312257265,-500.0,0.00020273,2]
[388668172,1759312257275,-500.0,0.00020273,2]
[388668173,1759312257284,-849.85,0.00020273,2]
[388668174,1759312257294,-500.0,0.00020273,2]
[388668175,1759312257303,-500.0,0.00020273,2]
[388668176,1759312257312,-500.0,0.00020273,2]
[388668177,1759312257321,-2805.82,0.00020273,2]
[388668178,1759312257330,-663.37,0.00020273,2]
[388668179,1759312257339,-500.0,0.00020273,2]
[388668180,1759312257349,-500.0,0.00020273,2]
[388668181,1759312257359,-500.0,0.00020273,2]
[388668182,1759312257368,-1026.72,0.00020273,2]
[388668183,1759312257377,-500.0,0.00020273,2]
[388668184,1759312257386,-4322.32,0.00020273,2]
[388668185,1759312257395,-2315.28,0.00020273,2]
[388668186,1759312257404,-2260.74,0.00020273,2]
[388668187,1759312257413,-500.0,0.00020273,2]
[388668188,1759312257422,-2875.66,0.00020273,2]
[388668189,1759312257432,-500.0,0.00020273,2]
[388668190,1759312257441,-500.0,0.00020273,2]
[388668191,1759312257450,-787.14,0.00020273,2]
[388668192,1759312257458,-500.0,0.00020273,2]
[388668193,1759312257467,-2009.06,0.00020273,2]
[388668194,1759312257476,-831.98,0.00020273,2]
[388668195,1759312257485,-4247.17,0.00020273,2]
[388668196,1759312257495,-515.83,0.00020273,2]
[388668197,1759312257504,-525.38,0.00020273,2]
[388668198,1759312257514,-500.0,0.00020273,2]
[388668199,1759312257523,-782.85,0.00020273,2]
[388668200,1759312257542,-500.0,0.00020273,2]
[388668201,1759312257553,-5080.75,0.00020273,2]
[388668202,1759312257563,-500.0,0.00020273,2]
[388668203,1759312257572,-500.0,0.00020273,2]
[388668204,1759312257582,-500.0,0.00020273,2]
[388668205,1759312257591,-1079.71,0.00020273,2]
[388668206,1759312257601,-1855.28,0.00020273,2]
[388668207,1759312257611,-1068.63,0.00020273,2]
[388668208,1759312257621,-500.0,0.00020273,2]
[388668209,1759312257630,-713.39,0.00020273,2]
[388668210,1759312257644,-2455.42,0.00020273,2]
[388668211,1759312257654,-783.54,0.00020273,2]
[388668212,1759312257664,-1038.31,0.00020273,2]
[388668213,1759312257674,-925.1,0.00020273,2]
[388668214,1759312257683,-515.04,0.00020273,2]
[388668215,1759312257693,-2258.24,0.00020273,2]
[388668216,1759312257703,-463.92234568,0.00020273,2]
[388668217,1759312257712,-14187.97,0.00020273,2]
[388668218,1759312257722,-846.91,0.00020273,2]
[388668219,1759312257732,-610.97,0.00020273,2]
[388668220,1759312257741,-153.72855784,0.00020273,2]
[388668221,1759312257751,-1832.46,0.00020273,2]
[388668222,1759312257761,-1495.65,0.00020273,2]
[388668223,1759312257771,-500.0,0.00020273,2]
[388668224,1759312257780,-1664.66,0.00020273,2]
[388668225,1759312257790,-500.0,0.00020273,2]
[388668226,1759312257800,-500.0,0.00020273,2]
[388668227,1759312257809,-2434.33,0.00020273,2]
[388668228,1759312257819,-1345.6,0.00020273,2]
[388668229,1759312257829,-1988.74,0.00020273,2]
[388668230,1759312257839,-1494.18,0.00020273,2]
[388668231,1759312257849,-500.0,0.00020273,2]
[388668232,1759312257858,-740.91,0.00020273,2]
[388668233,1759312257868,-500.0,0.00020273,2]
[388668234,1759312257877,-2157.86,0.00020273,2]
[388668235,1759312257888,-500.0,0.00020273,2]
[388668236,1759312257897,-740.79,0.00020273,2]
[388668237,1759312257907,-1666.12,0.00020273,2]
[388668238,1759312257917,-1456.34,0.00020273,2]
[388668239,1759312257927,-500.0,0.00020273,2]
[388668240,1759312257937,-500.0,0.00020273,2]
[388668241,1759312257948,-1732.52,0.00020273,2]
[388668242,1759312257958,-1269.88,0.00020273,2]
[388668243,1759312257968,-2150.38,0.00020273,2]
[388668244,1759312257979,-5567.8,0.00020273,2]
[388668245,1759312257990,-500.0,0.00020273,2]
[388668246,1759312258000,-500.0,0.00020273,2]
[388668247,1759312258010,-3321.43,0.00020273,2]
[388668248,1759312258020,-500.0,0.00020273,2]
[388668249,1759312258029,-500.0,0.00020273,2]
[388668250,1759312258038,-2282.82,0.00020273,2]
[388668251,1759312258048,-500.0,0.00020273,2]
[388668252,1759312258058,-760.17,0.00020273,2]
[388668253,1759312258067,-1952.05,0.00020273,2]
[388668254,1759312258077,-696.85,0.00020273,2]
[388668255,1759312258087,-500.0,0.00020273,2]
[388668256,1759312258097,-500.0,0.00020273,2]
[388668257,1759312258106,-802.72,0.00020273,2]
[388668258,1759312258115,-500.0,0.00020273,2]
[388668259,1759312258124,-2899.74,0.00020273,2]
[388668260,1759312258134,-2537.09,0.00020273,2]
[388668261,1759312258143,-500.0,0.00020273,2]
[388668262,1759312258153,-500.0,0.00020273,2]
[388668263,1759312258163,-2171.05,0.00020273,2]
[388668264,1759312258174,-1943.0,0.00020273,2]
[388668265,1759312258184,-500.0,0.00020273,2]
[388668266,1759312258194,-500.0,0.00020273,2]
[388668267,1759312258203,-697.22,0.00020273,2]
[388668268,1759312258212,-725.54,0.00020273,2]
[388668269,1759312258222,-1850.45,0.00020273,2]
[388668270,1759312258232,-2130.13,0.00020273,2]
[388668271,1759312258241,-500.0,0.00020273,2]
[388668272,1759312258251,-500.0,0.00020273,2]
[388668273,1759312258260,-1234.48,0.00020273,2]
[388668274,1759312258269,-1529.22,0.00020273,2]
[388668275,1759312258278,-500.0,0.00020273,2]
[388668276,1759312258288,-1379.5,0.00020273,2]
[388668277,1759312258297,-6327.18,0.00020273,2]
[388668278,1759312258306,-871.03,0.00020273,2]
[388668279,1759312258316,-601.55,0.00020273,2]
[388668280,1759312258325,-388.96891351,0.00020273,2]
[388668281,1759312258334,-2601.62,0.00020273,2]
[388668282,1759312258344,-5343.87,0.00020273,2]
[388668283,1759312258353,-1867.26,0.00020273,2]
[388668284,1759312258362,-213.80090686,0.00020273,2]
[388668285,1759312258372,-973.06,0.00020273,2]
[388668286,1759312258381,-3491.149292,0.00020273,2]
[388668287,1759312258392,-3491.149292,0.00020273,2]
[388668288,1759312258401,-2247.22,0.00020273,2]
[388668289,1759312258411,-3491.149292,0.00020273,2]
[388668290,1759312258421,-500.0,0.00020274,2]
[388668291,1759312258430,-500.0,0.00020274,2]
[388668292,1759312258439,-150.073,0.00020286,2]
[388668293,1759312258449,-264.91,0.00020286,2]
[388668294,1759312258458,-3064.65080501,0.000203,2]
[388668295,1759312258468,-151.0,0.000203,2]
[388668296,1759312258477,-1000.0,0.00020321,2]
[388668297,1759312258486,-1000.0,0.00020321,2]
[388668298,1759312258496,-221.14958848,0.00020321,2]
[388668299,1759312258505,-575.41832241,0.00020321,2]
[388668300,1759312258516,-1000.0,0.00020321,2]
[388668301,1759312258526,-1000.0,0.00020321,2]
[388668302,1759312258535,-1000.0,0.00020321,2]
[388668303,1759312258544,-1000.0,0.00020321,2]
[388668304,1759312258553,-1000.0,0.00020321,2]
[388668305,1759312258562,-1000.0,0.00020321,2]
[388668306,1759312258572,-1000.0,0.00020321,2]
[388668307,1759312258581,-1000.0,0.00020321,2]
[388668308,1759312258590,-740.64680277,0.00020321,2]
[388668309,1759312258600,-672.03502859,0.00020321,2]
[388668310,1759312258611,-1000.0,0.00020321,2]
[388668311,1759312258621,-506.06717383,0.00020321,2]
[388668312,1759312258631,-1000.0,0.00020321,2]
[388668313,1759312258651,-1000.0,0.00020321,2]
[388668314,1759312258661,-1000.0,0.00020321,2]
[388668315,1759312258671,-1000.0,0.00020321,2]
[388668316,1759312258683,-1000.0,0.00020321,2]
[388668317,1759312258693,-1000.0,0.00020321,2]
[388668318,1759312258702,-1000.0,0.00020321,2]
[388668319,1759312258712,-227.806,0.00020331,2]
[388668320,1759312258721,-250.0,0.00020331,2]
[388668321,1759312258731,-151.116,0.00020331,2]
[388668322,1759312258740,-150.057,0.00020331,2]
[388668323,1759312258749,-288.17,0.00020334,2]
[388668324,1759312258758,-151.0,0.00020334,2]
[388668325,1759312258768,-151.0,0.00020335,2]
[388668326,1759312258777,-151.0,0.00020335,2]
[388668327,1759312258786,-151.0,0.00020335,2]
[388668328,1759312258794,-271.85679589,0.00020346,2]
[388668329,1759312258804,-500.0,0.00020346,2]
[388668330,1759312258815,-500.0,0.00020346,2]
[388668331,1759312258824,-500.0,0.00020346,2]
[388668332,1759312258833,-500.0,0.00020346,2]
[388668333,1759312258842,-500.0,0.00020346,2]
[388668334,1759312258852,-428.03436851,0.00020346,2]
[388668335,1759312258861,-616.81,0.00020346,2]
[388668336,1759312258871,-500.0,0.00020346,2]
[388668337,1759312258880,-738.24,0.00020346,2]
[388668338,1759312258890,-500.0,0.00020346,2]
[388668339,1759312258899,-500.0,0.00020346,2]
[388668340,1759312258908,-909.66,0.00020346,2]
[388668341,1759312258917,-944.45,0.00020346,2]
[388668342,1759312258927,-500.0,0.00020346,2]
[388668343,1759312258936,-507.48478079,0.00020346,2]
[388668344,1759312258945,-500.0,0.00020346,2]
[388668345,1759312258954,-500.0,0.00020346,2]
[388668346,1759312258964,-1009.55,0.00020346,2]
[388668347,1759312258973,-500.0,0.00020346,2]
[388668348,1759312258982,-541.49,0.00020346,2]
[388668349,1759312258992,-672.84,0.00020346,2]
[388668350,1759312259001,-1013.88,0.00020346,2]
[388668351,1759312259010,-500.0,0.00020346,2]
[388668352,1759312259019,-500.0,0.00020346,2]
[388668353,1759312259028,-881.39,0.00020346,2]
[388668354,1759312259038,-1144.2,0.00020346,2]
[388668355,1759312259047,-1042.98,0.00020346,2]
[388668356,1759312259056,-500.0,0.00020346,2]
[388668357,1759312259066,-424.47503162,0.00020346,2]
[388668358,1759312259075,-951.18,0.00020346,2]
[388668359,1759312259084,-597.61,0.00020346,2]
[388668360,1759312259094,-285.02691743,0.00020346,2]
[388668361,1759312259103,-2767.55,0.00020346,2]
[388668362,1759312259113,-500.0,0.00020346,2]
[388668363,1759312259122,-1601.15,0.00020346,2]
[388668364,1759312259131,-500.0,0.00020346,2]
[388668365,1759312259141,-1303.62,0.00020346,2]
[388668366,1759312259151,-880.42,0.00020346,2]
[388668367,1759312259160,-500.0,0.00020346,2]
[388668368,1759312259169,-424.03539874,0.00020346,2]
[388668369,1759312259179,-500.0,0.00020346,2]
[388668370,1759312259188,-500.0,0.00020346,2]
[388668371,1759312259197,-500.0,0.00020346,2]
[388668372,1759312259206,-500.0,0.00020346,2]
[388668373,1759312259216,-500.0,0.00020346,2]
[388668374,1759312259225,-500.0,0.00020346,2]
[388668375,1759312259234,-3069.98,0.00020346,2]
[388668376,1759312259244,-1087.79,0.00020346,2]
[388668377,1759312259253,-500.0,0.00020346,2]
[388668378,1759312259262,-979.6,0.00020346,2]
[388668379,1759312259271,-500.0,0.00020346,2]
[388668380,1759312259280,-1319.57,0.00020346,2]
[388668381,1759312259289,-521.88,0.00020346,2]
[388668382,1759312259298,-500.0,0.00020346,2]
[388668383,1759312259308,-585.57,0.00020346,2]
[388668384,1759312259317,-697.73,0.00020346,2]
[388668385,1759312259326,-500.0,0.00020346,2]
[388668386,1759312259335,-500.0,0.00020346,2]
[388668387,1759312259344,-1230.61,0.00020346,2]
[388668388,1759312259354,-500.0,0.00020346,2]
[388668389,1759312259364,-500.0,0.00020346,2]
[388668390,1759312259373,-500.0,0.00020346,2]
[388668391,1759312259382,-1132.62,0.00020346,2]
[388668392,1759312259392,-500.0,0.00020346,2]
[388668393,1759312259402,-3998.84,0.00020346,2]
[388668394,1759312259411,-1016.78,0.00020346,2]
[388668395,1759312259420,-395.80825854,0.00020346,2]
[388668396,1759312259430,-500.0,0.00020346,2]
[388668397,1759312259439,-500.0,0.00020346,2]
[388668398,1759312259449,-1071.56,0.00020346,2]
[388668399,1759312259458,-1010.17160294,0.00020346,2]
[388668400,1759312259467,-500.0,0.00020346,2]
[388668401,1759312259476,-500.0,0.00020346,2]
[388668402,1759312259485,-830.91,0.00020346,2]
[388668403,1759312259495,-500.0,0.00020346,2]
[388668404,1759312259504,-500.0,0.00020346,2]
[388668405,1759312259514,-500.0,0.00020346,2]
[388668406,1759312259523,-525.5,0.00020346,2]
[388668407,1759312259533,-151.0,0.00020346,2]
[388668408,1759312259543,-151.0,0.00020346,2]
[388668409,1759312259552,-500.0,0.00020346,2]
[388668410,1759312259561,-603.63,0.00020346,2]
[388668411,1759312259570,-500.0,0.00020346,2]
[388668412,1759312259580,-927.91,0.00020346,2]
[388668413,1759312259589,-2099.75,0.00020346,2]
[388668414,1759312259600,-500.0,0.00020346,2]
[388668415,1759312259610,-3491.149292,0.00020346,2]
[388668416,1759312259619,-3491.149292,0.00020346,2]
[388668417,1759312259628,-3491.149292,0.00020346,2]
[388668418,1759312259640,-500.0,0.00020347,2]
[388668419,1759312259649,-2495.81,0.00020347,2]
[388668420,1759312259659,-2783.69,0.00020347,2]
[388668421,1759312259669,-750.87,0.00020347,2]
[388668422,1759312259678,-2265.48,0.00020347,2]
[388668423,1759312259688,-549.1,0.00020347,2]
[388668424,1759312259697,-500.0,0.00020348,2]
[388668425,1759312259707,-500.0,0.00020348,2]
[388668426,1759312259716,-500.0,0.00020348,2]
[388668427,1759312259726,-892.58,0.00020348,2]
[388668428,1759312259736,-593.97,0.00020348,2]
[388668429,1759312259745,-500.0,0.00020348,2]
[388668430,1759312259755,-1067.02,0.00020348,2]
[388668431,1759312259764,-2800.6,0.00020348,2]
[388668432,1759312259773,-500.0,0.00020348,2]
[388668433,1759312259782,-500.0,0.00020348,2]
[388668434,1759312259792,-500.0,0.00020348,2]
[388668435,1759312259802,-500.0,0.00020348,2]
[388668436,1759312259946,-500.0,0.00020348,2]
[388668437,1759312259955,-3830.39,0.00020348,2]
[388668438,1759312259964,-500.0,0.00020348,2]
[388668439,1759312259977,-500.0,0.00020348,2]
[388668440,1759312259986,-866.19,0.00020348,2]
[388668441,1759312259995,-888.39,0.00020348,2]
[388668442,1759312260006,-500.0,0.00020348,2]
[388668443,1759312260016,-500.0,0.00020348,2]
[388668444,1759312260026,-500.0,0.00020348,2]
[388668445,1759312260036,-1377.42,0.00020348,2]
[388668446,1759312260046,-500.0,0.0002035,2]
[388668447,1759312260055,-705.45,0.0002035,2]
[388668448,1759312260065,-500.0,0.0002035,2]
[388668449,1759312260074,-500.0,0.0002035,2]
[388668450,1759312260083,-500.0,0.0002035,2]
[388668451,1759312260093,-594.69,0.0002035,2]
[388668452,1759312260102,-608.58,0.0002035,2]
[388668453,1759312260111,-516.6,0.0002035,2]
[388668454,1759312260121,-1225.05,0.0002035,2]
[388668455,1759312260130,-500.0,0.0002035,2]
[388668456,1759312260139,-500.0,0.0002035,2]
[388668457,1759312260149,-694.7,0.0002035,2]
[388668458,1759312260158,-151.0,0.00020352,2]
[388668459,1759312260167,-866.33195918,0.00020368,2]
[388668460,1759312260176,-1500.0,0.00020368,2]
[388668461,1759312260186,-1500.0,0.00020368,2]
[388668462,1759312260195,-1500.0,0.00020368,2]
[388668463,1759312260204,-1500.0,0.00020368,2]
[388668464,1759312260214,-1500.0,0.00020368,2]
[388668465,1759312260224,-1500.0,0.00020368,2]
[388668466,1759312260233,-605.54277074,0.00020373,2]
[388668467,1759312260242,-500.0,0.00020373,2]
[388668468,1759312260251,-2924.0,0.00020376,2]
[388668469,1759312260260,-1003.02,0.00020376,2]
[388668470,1759312260270,-630.0,0.00020376,2]
[388668471,1759312260280,-2156.0,0.00020376,2]
[388668472,1759312260290,-1208.1589169,0.00020387,2]
[388668473,1759312260300,-277.0,0.000204,2]
[388668474,1759312260310,-167.25259092,0.00020406,2]
[388668475,1759312260320,-1000.0,0.00020406,2]
[388668476,1759312260330,-245.0,0.00020406,2]
[388668477,1759312260339,-199.31845379,0.00020406,2]
[388668478,1759312260348,-151.0,0.00020406,2]
[388668479,1759312260358,-199.44244335,0.00020406,2]
[388668480,1759312260367,-199.14160081,0.00020406,2]
[388668481,1759312260376,-151.0,0.00020406,2]
[388668482,1759312260387,-500.0,0.00020406,2]
[388668483,1759312260396,-151.0,0.00020406,2]
[388668484,1759312260406,-973.47671203,0.0002042,2]
[388668485,1759312260417,-5539.76,0.0002051,3]
[388668486,1759312260426,-2769.88,0.0002051,3]
[388668487,1759312260436,-1002.61971287,0.00020521,2]
[388668488,1759312260446,-1000.0,0.00020521,2]
[388668489,1759312260456,-504.16551314,0.00020521,2]
[388668490,1759312260465,-1002.37760947,0.00020521,2]
[388668491,1759312260475,-502.66302311,0.00020521,2]
[388668492,1759312260484,-1000.0,0.00020521,2]
[388668493,1759312260493,-1000.0,0.00020521,2]
[388668494,1759312260502,-1000.0,0.00020521,2]
[388668495,1759312260512,-1000.0,0.00020521,2]
[388668496,1759312260521,-1000.0,0.00020521,2]
[388668497,1759312260529,-1000.0,0.00020521,2]
[388668498,1759312260539,-1000.0,0.00020521,2]
[388668499,1759312260549,-1000.0,0.00020521,2]
[388668500,1759312260557,-1000.0,0.00020521,2]
[388668501,1759312260567,-1000.0,0.00020521,2]
[388668502,1759312260576,-1000.0,0.00020521,2]
[388668503,1759312260585,-1000.0,0.00020521,2]
[388668504,1759312260594,-1000.0,0.00020521,2]
[388668505,1759312260603,-1000.0,0.00020521,2]
[388668506,1759312260613,-413.1103713,0.00020521,2]
[388668507,1759312260623,-1000.0,0.00020521,2]
[388668508,1759312260632,-273.33965458,0.00020521,2]
[388668509,1759312260643,-1000.0,0.00020521,2]
[388668510,1759312260653,-1000.0,0.00020521,2]
[388668511,1759312260663,-1384.94,0.00020538,3]
[388668512,1759312260672,-692.48,0.00020538,3]
[388668513,1759312260682,-346.24,0.00020538,3]
[388668514,1759312260691,-500.0,0.00020547,2]
[388668515,1759312260701,-500.0,0.00020547,2]
[388668516,1759312260711,-500.0,0.00020547,2]
[388668517,1759312260720,-500.0,0.00020547,2]
[388668518,1759312260729,-577.01,0.00020547,2]
[388668519,1759312260739,-2807.49,0.00020547,2]
[388668520,1759312260748,-500.0,0.00020547,2]
[388668521,1759312260757,-500.0,0.00020547,2]
[388668522,1759312260767,-500.0,0.00020547,2]
[388668523,1759312260776,-1806.42,0.00020547,2]
[388668524,1759312260786,-1024.64,0.00020547,2]
[388668525,1759312260796,-500.0,0.00020547,2]
[388668526,1759312260805,-518.19,0.00020547,2]
[388668527,1759312260815,-500.0,0.00020547,2]
[388668528,1759312260825,-500.0,0.00020547,2]
[388668529,1759312260835,-1487.26,0.00020547,2]
[388668530,1759312260845,-1559.42,0.00020547,2]
[388668531,1759312260855,-500.0,0.00020547,2]
[388668532,1759312260865,-500.0,0.00020547,2]
[388668533,1759312260875,-1096.91,0.00020547,2]
[388668534,1759312260885,-151.0,0.00020547,2]
[388668535,1759312260897,-151.0,0.00020547,2]
[388668536,1759312260907,-500.0,0.00020547,2]
[388668537,1759312260917,-151.0,0.00020547,2]
[388668538,1759312260926,-500.0,0.00020547,2]
[388668539,1759312260935,-500.0,0.00020547,2]
[388668540,1759312260945,-849.85,0.00020547,2]
[388668541,1759312260954,-500.0,0.00020547,2]
[388668542,1759312260963,-494.9007129,0.00020547,2]
[388668543,1759312260972,-500.0,0.00020547,2]
[388668544,1759312260981,-2805.82,0.00020547,2]
[388668545,1759312260991,-663.37,0.00020547,2]
[388668546,1759312261000,-500.0,0.00020547,2]
[388668547,1759312261009,-500.0,0.00020547,2]
[388668548,1759312261019,-500.0,0.00020547,2]
[388668549,1759312261028,-500.0,0.00020547,2]
[388668550,1759312261037,-500.0,0.00020547,2]
[388668551,1759312261046,-500.0,0.00020547,2]
[388668552,1759312261055,-559.66371399,0.00020547,2]
[388668553,1759312261064,-1026.72,0.00020547,2]
[388668554,1759312261074,-500.0,0.00020547,2]
[388668555,1759312261082,-4322.32,0.00020547,2]
[388668556,1759312261091,-2315.28,0.00020547,2]
[388668557,1759312261100,-2260.74,0.00020547,2]
[388668558,1759312261109,-500.0,0.00020547,2]
[388668559,1759312261118,-2875.66,0.00020547,2]
[388668560,1759312261129,-500.0,0.00020547,2]
[388668561,1759312261139,-378.74249108,0.00020547,2]
[388668562,1759312261148,-787.14,0.00020547,2]
[388668563,1759312261157,-2009.06,0.00020547,2]
[388668564,1759312261168,-831.98,0.00020547,2]
[388668565,1759312261178,-4247.17,0.00020547,2]
[388668566,1759312261188,-515.83,0.00020547,2]
[388668567,1759312261198,-525.38,0.00020547,2]
[388668568,1759312261207,-500.0,0.00020547,2]
[388668569,1759312261217,-782.85,0.00020547,2]
[388668570,1759312261227,-500.0,0.00020547,2]
[388668571,1759312261238,-5080.75,0.00020547,2]
[388668572,1759312261248,-500.0,0.00020547,2]
[388668573,1759312261259,-500.0,0.00020547,2]
[388668574,1759312261269,-500.0,0.00020547,2]
[388668575,1759312261279,-1079.71,0.00020547,2]
[388668576,1759312261289,-1855.28,0.00020547,2]
[388668577,1759312261298,-1068.63,0.00020547,2]
[388668578,1759312261308,-500.0,0.00020547,2]
[388668579,1759312261317,-713.39,0.00020547,2]
[388668580,1759312261326,-2455.42,0.00020547,2]
[388668581,1759312261335,-783.54,0.00020547,2]
[388668582,1759312261344,-1038.31,0.00020547,2]
[388668583,1759312261353,-925.1,0.00020547,2]
[388668584,1759312261362,-515.04,0.00020547,2]
[388668585,1759312261371,-2258.24,0.00020547,2]
[388668586,1759312261380,-14187.97,0.00020547,2]
[388668587,1759312261389,-846.91,0.00020547,2]
[388668588,1759312261398,-610.97,0.00020547,2]
[388668589,1759312261407,-1832.46,0.00020547,2]
[388668590,1759312261416,-1495.65,0.00020547,2]
[388668591,1759312261425,-500.0,0.00020547,2]
[388668592,1759312261435,-1664.66,0.00020547,2]
[388668593,1759312261444,-421.4917537,0.00020547,2]
[388668594,1759312261453,-2434.33,0.00020547,2]
[388668595,1759312261463,-1345.6,0.00020547,2]
[388668596,1759312261472,-1988.74,0.00020547,2]
[388668597,1759312261481,-1494.18,0.00020547,2]
[388668598,1759312261491,-500.0,0.00020547,2]
[388668599,1759312261500,-740.91,0.00020547,2]
[388668600,1759312261510,-295.19536996,0.00020547,2]
[388668601,1759312261520,-2157.86,0.00020547,2]
[388668602,1759312261529,-500.0,0.00020547,2]
[388668603,1759312261538,-740.79,0.00020547,2]
[388668604,1759312261547,-1666.12,0.00020547,2]
[388668605,1759312261556,-1456.34,0.00020547,2]
[388668606,1759312261565,-500.0,0.00020547,2]
[388668607,1759312261574,-500.0,0.00020547,2]
[388668608,1759312261584,-1732.52,0.00020547,2]
[388668609,1759312261593,-1269.88,0.00020547,2]
[388668610,1759312261602,-2150.38,0.00020547,2]
[388668611,1759312261611,-5567.8,0.00020547,2]
[388668612,1759312261620,-500.0,0.00020547,2]
[388668613,1759312261629,-500.0,0.00020547,2]
[388668614,1759312261641,-3321.43,0.00020547,2]
[388668615,1759312261651,-500.0,0.00020547,2]
[388668616,1759312261660,-500.0,0.00020547,2]
[388668617,1759312261670,-2282.82,0.00020547,2]
[388668618,1759312261679,-760.17,0.00020547,2]
[388668619,1759312261690,-1952.05,0.00020547,2]
[388668620,1759312261700,-696.85,0.00020547,2]
[388668621,1759312261709,-500.0,0.00020547,2]
[388668622,1759312261722,-500.0,0.00020547,2]
[388668623,1759312261731,-802.72,0.00020547,2]
[388668624,1759312261740,-500.0,0.00020547,2]
[388668625,1759312261750,-2899.74,0.00020547,2]
[388668626,1759312261759,-2537.09,0.00020547,2]
[388668627,1759312261769,-500.0,0.00020547,2]
[388668628,1759312261779,-500.0,0.00020547,2]
[388668629,1759312261789,-2171.05,0.00020547,2]
[388668630,1759312261798,-1943.0,0.00020547,2]
[388668631,1759312261808,-500.0,0.00020547,2]
[388668632,1759312261818,-500.0,0.00020547,2]
[388668633,1759312261827,-697.22,0.00020547,2]
[388668634,1759312261836,-725.54,0.00020547,2]
[388668635,1759312261845,-1850.45,0.00020547,2]
[388668636,1759312261854,-2130.13,0.00020547,2]
[388668637,1759312261864,-500.0,0.00020547,2]
[388668638,1759312261872,-500.0,0.00020547,2]
[388668639,1759312261882,-1234.48,0.00020547,2]
[388668640,1759312261892,-1529.22,0.00020547,2]
[388668641,1759312261901,-500.0,0.00020547,2]
[388668642,1759312261910,-1379.5,0.00020547,2]
[388668643,1759312261920,-6327.18,0.00020547,2]
[388668644,1759312261929,-871.03,0.00020547,2]
[388668645,1759312261938,-601.55,0.00020547,2]
[388668646,1759312261947,-2601.62,0.00020547,2]
[388668647,1759312261956,-5343.87,0.00020547,2]
[388668648,1759312261966,-1867.26,0.00020547,2]
[388668649,1759312261975,-2247.22,0.00020547,2]
[388668650,1759312261985,-500.0,0.00020548,2]
[388668651,1759312261994,-151.0,0.00020548,7]
[388668652,1759312262003,-151.0,0.00020548,7]
[388668653,1759312262012,-151.0,0.00020548,7]
[388668654,1759312262022,-151.0,0.00020548,7]